bitfinex-derivatives/quotes_BNBF0:USTF0_20250511
["timestamp","ask_amount","ask_price","bid_price","bid_amount"]
[1746949161948,0.26483716,657.89,656.16,0.56964086]
[1746949164244,0.24345293,657.93,656.16,0.3048037]
[1746949164548,0.26485127,657.88,656.16,0.56965497]
[1746949165747,0.26485127,657.88,656.17,0.502]
[1746949168854,1.92318063,657.5,656.17,0.502]
[1746949170350,0.2650207,657.49,656.17,0.502]
[1746949170551,0.50775077,657.49,656.17,0.502]
[1746949171552,1.92318063,657.38,656.17,0.502]
[1746949172052,0.24273007,657.37,656.17,0.502]
[1746949172355,0.24273007,657.36,656.17,0.502]
[1746949172653,0.24273007,657.35,656.17,0.502]
[1746949173455,0.26504694,657.34,656.17,0.502]
[1746949173671,0.50777701,657.34,656.17,0.502]
[1746949174354,0.24273007,657.33,656.17,0.502]
[1746949177954,0.24273007,657.32,656.17,0.502]
[1746949178254,0.24273007,657.31,656.17,0.502]
[1746949178549,0.24273007,657.33,656.17,0.502]
[1746949179453,0.2650106,657.32,656.17,0.502]
[1746949179855,0.2650106,657.32,656.16,0.3048037]
[1746949180057,0.24273007,657.31,656.16,0.3048037]
[1746949182359,0.24273007,657.3,656.16,0.3048037]
[1746949182554,0.24273007,657.29,656.17,0.519]
[1746949182858,0.24273007,657.28,656.17,0.519]
[1746949183159,0.26501767,657.3,656.17,0.519]
[1746949183160,0.24273007,657.27,656.17,0.519]
[1746949183356,0.24273007,657.26,656.17,0.519]
[1746949183659,0.24273007,657.25,656.17,0.519]
[1746949183960,0.24273007,657.24,656.17,0.519]
[1746949184259,0.26501767,657.3,656.17,0.519]
[1746949184960,0.24253996,657.29,656.17,0.519]
[1746949185160,0.24253996,657.28,656.17,0.519]
[1746949185460,0.26501767,657.3,656.17,0.519]
[1746949185759,0.24253128,657.29,656.17,0.519]
[1746949186160,0.24253128,657.28,656.17,0.519]
[1746949186559,0.24253128,657.29,656.17,0.519]
[1746949188461,0.26504189,657.28,656.17,0.519]
[1746949189060,0.24253128,657.27,656.17,0.519]
[1746949189961,0.24253128,657.26,656.17,0.519]
[1746949190662,0.24253128,657.25,656.17,0.519]
[1746949190956,0.24253128,657.24,656.17,0.519]
[1746949191462,0.26499648,657.23,656.17,0.519]
[1746949191656,0.24253128,657.22,656.17,0.519]
[1746949191961,0.24253128,657.21,656.17,0.519]
[1746949192157,0.24253128,657.2,656.17,0.519]
[1746949192457,0.24253128,657.19,656.17,0.519]
[1746949192865,0.24253128,657.18,656.17,0.519]
[1746949193262,0.24253128,657.17,656.17,0.519]
[1746949193556,0.24253128,657.16,656.17,0.519]
[1746949193857,0.24253128,657.15,656.17,0.519]
[1746949194263,0.24253128,657.22,656.17,0.519]
[1746949194561,0.24253128,657.61,656.17,0.519]
[1746949194863,0.24253128,657.6,656.17,0.519]
[1746949195158,0.24253128,657.59,656.17,0.519]
[1746949195866,0.24253128,657.58,656.17,0.519]
[1746949196159,0.24253128,657.57,656.17,0.519]
[1746949196564,0.24253128,657.56,656.17,0.519]
[1746949196764,0.50754895,657.56,656.17,0.519]
[1746949196964,0.24253128,657.55,656.17,0.519]
[1746949197464,0.26501767,657.54,656.17,0.519]
[1746949197665,0.50754895,657.54,656.17,0.519]
[1746949198164,0.24253128,657.53,656.17,0.519]
[1746949198366,0.24253128,657.52,656.17,0.519]
[1746949198566,0.24253128,657.51,656.17,0.519]
[1746949198862,0.24253128,657.5,656.17,0.519]
[1746949199267,0.24253128,657.49,656.17,0.519]
[1746949199861,0.24253128,657.48,656.17,0.519]
[1746949200064,0.24253128,657.47,656.17,0.519]
[1746949200569,0.24253128,657.46,656.17,0.519]
[1746949200767,0.24253128,657.45,656.17,0.519]
[1746949201067,0.24253128,657.49,656.17,0.519]
[1746949201468,0.24253128,657.48,656.17,0.519]
[1746949201969,0.24253128,657.47,656.17,0.519]
[1746949202170,0.24253128,657.46,656.17,0.519]
[1746949202573,0.24253128,657.53,656.17,0.519]
[1746949202970,0.24253128,657.52,656.17,0.519]
[1746949203172,1.92318063,657.66,656.17,0.519]
[1746949203475,0.26504694,657.51,656.17,0.519]
[1746949203675,1.92318063,657.66,656.17,0.519]
[1746949203878,0.24248998,657.65,656.17,0.519]
[1746949204074,0.26504694,657.5,656.17,0.519]
[1746949204274,0.24248998,657.49,656.17,0.519]
[1746949204467,0.26504694,657.49,656.17,0.519]
[1746949204874,0.24248998,657.48,656.17,0.519]
[1746949205074,0.24248998,657.47,656.17,0.519]
[1746949205268,0.24248998,657.46,656.17,0.519]
[1746949205576,0.24248998,657.46,656.16,0.3048037]
[1746949205977,0.24248998,657.45,656.16,0.3048037]
[1746949206473,0.50754297,657.44,656.16,0.3048037]
[1746949206677,1.92318063,657.07,656.16,0.3048037]
[1746949207078,0.24248998,657.06,656.16,0.3048037]
[1746949207379,1.92318063,657.07,656.16,0.3048037]
[1746949207679,0.24247344,657.06,656.16,0.3048037]
[1746949208383,0.24247344,657.06,656.17,0.385]
[1746949209480,0.2651065,657.05,656.17,0.385]
[1746949209779,0.24247344,657.04,656.17,0.385]
[1746949211885,0.2651065,657.05,656.17,0.385]
[1746949212488,0.24238771,657.04,656.17,0.385]
[1746949213086,1.92318063,656.91,656.17,0.385]
[1746949213586,0.24238771,656.9,656.17,0.385]
[1746949213786,0.24238771,656.89,656.17,0.385]
[1746949214087,0.24238771,656.9,656.17,0.385]
[1746949215385,2.16556834,656.9,656.17,0.385]
[1746949215585,0.26534604,656.89,656.17,0.385]
[1746949215988,0.24238771,656.88,656.17,0.385]
[1746949218488,0.26535312,656.87,656.17,0.385]
[1746949218893,0.24238771,656.86,656.17,0.385]
[1746949219297,0.30448351,656.85,656.17,0.385]
[1746949219789,0.24234483,656.84,656.17,0.385]
[1746949221388,0.265428,656.83,656.17,0.385]
[1746949221689,0.24234483,656.82,656.17,0.385]
[1746949224500,0.26543914,656.81,656.17,0.385]
[1746949224997,0.24226791,656.8,653.78,0.95271709]
[1746949225297,0.24226791,656.8,653.34,0.63004493]
[1746949225499,0.24226791,656.8,653.93,0.30584313]
[1746949226698,0.24226791,656.8,653.94,0.26549888]
[1746949227099,0.24226791,656.8,653.93,0.30584313]
[1746949227399,0.24226791,656.8,653.94,0.26545432]
[1746949228701,0.26547964,656.79,653.94,0.26545432]
[1746949228899,0.26547964,656.79,653.95,0.323]
[1746949232395,0.24226791,656.78,653.96,0.28043583]
[1746949233201,0.24226791,656.77,653.96,0.28043583]
[1746949233496,0.24226791,656.76,653.97,0.28043583]
[1746949233895,0.24226791,656.75,653.98,0.28043583]
[1746949234200,0.24226791,656.74,653.99,0.28043583]
[1746949234401,0.24226791,656.73,653.96,0.28043583]
[1746949234799,0.24226791,656.72,653.97,0.28043583]
[1746949235397,0.24226791,656.71,653.98,0.28043583]
[1746949235701,0.50774552,656.71,653.98,0.28043583]
[1746949235899,0.26547761,656.71,653.96,0.28043583]
[1746949236202,0.24226791,656.7,653.96,0.28043583]
[1746949236602,0.24226791,656.84,653.96,0.28043583]
[1746949237304,0.24226791,656.83,653.97,0.28043583]
[1746949237502,0.5077111,656.83,653.97,0.28043583]
[1746949237706,0.24226791,656.82,653.98,0.28043583]
[1746949238105,0.26544319,656.83,653.95,0.5884523]
[1746949238400,0.26544319,656.83,653.96,0.28044623]
[1746949238599,0.2421727,656.82,653.96,0.28044623]
[1746949238905,0.2421727,656.81,653.97,0.28044623]
[1746949239206,0.2421727,656.8,653.96,0.28044623]
[1746949239407,0.2421727,656.8,653.96,0.54592182]
[1746949239706,0.2421727,656.84,653.97,0.28044623]
[1746949241704,0.2421727,656.83,653.97,0.28044623]
[1746949242009,0.2421727,656.82,653.97,0.28044623]
[1746949242209,0.2421727,656.84,653.97,0.28044623]
[1746949242509,0.26548267,656.81,653.97,0.28044623]
[1746949242710,0.26548267,656.81,653.96,0.5459289]
[1746949242911,0.2421727,656.8,653.98,0.28044623]
[1746949243207,0.2421727,656.8,653.97,0.28044623]
[1746949243905,0.26548267,656.81,653.96,0.26548267]
[1746949244707,0.24218079,656.8,653.97,0.28043259]
[1746949247007,0.26548267,656.81,653.96,0.26548267]
[1746949247308,0.24219169,656.8,653.97,0.28043078]
[1746949249211,0.24219169,656.84,653.97,0.28043078]
[1746949249513,0.24219169,656.83,653.98,0.463]
[1746949249711,0.24219169,656.84,653.99,0.28043078]
[1746949250111,0.30448351,656.85,653.98,0.463]
[1746949250612,0.24215703,656.84,653.99,0.28046115]
[1746949251415,0.26546647,656.83,653.99,0.28046115]
[1746949251609,0.5076235,656.83,654.0,0.28046115]
[1746949251911,0.24215703,656.82,654.0,0.28046115]
[1746949252109,0.24215703,656.82,654.01,0.28046115]
[1746949252414,0.24215703,656.81,654.02,0.28046115]
[1746949252616,0.26546647,656.83,653.98,0.463]
[1746949253215,0.24214561,656.82,653.99,0.28048545]
[1746949253408,1.92318063,656.66,653.99,0.28048545]
[1746949254212,0.24214561,656.65,653.99,0.28048545]
[1746949254516,0.50763132,656.65,653.99,0.28048545]
[1746949255012,0.24214561,656.64,653.99,0.28048545]
[1746949257419,0.50761208,656.63,653.99,0.28048545]
[1746949257719,0.24214561,656.62,653.99,0.28048545]
[1746949258120,0.24214561,656.61,653.99,0.28048545]
[1746949258418,0.24214561,656.6,653.99,0.28048545]
[1746949258722,0.24214561,656.59,653.99,0.28048545]
[1746949259023,0.24214561,656.62,653.99,0.28048545]
[1746949259225,0.24214561,656.61,654.12,0.30575429]
[1746949259621,0.24214561,656.6,654.13,0.28048545]
[1746949259926,0.24214561,656.62,654.13,0.28048545]
[1746949260226,0.24214561,656.61,654.13,0.28048545]
[1746949260426,0.24214561,656.6,654.13,0.28048545]
[1746949260727,0.24214561,656.59,654.13,0.28048545]
[1746949261127,0.24214561,656.6,654.13,0.28048545]
[1746949263926,0.24214561,656.59,654.13,0.28048545]
[1746949264522,0.24214561,656.58,654.13,0.28048545]
[1746949265127,0.24214561,656.6,654.13,0.28048545]
[1746949265629,1.92318063,656.45,654.13,0.28048545]
[1746949265930,0.24214561,656.44,654.14,0.325]
[1746949266530,0.26550799,656.43,654.14,0.325]
[1746949266730,0.26550799,656.43,654.15,0.28048545]
[1746949266931,0.24214561,656.42,654.15,0.28048545]
[1746949268732,0.24214561,656.41,654.15,0.28048545]
[1746949269231,0.24214561,656.4,654.15,0.28048545]
[1746949269834,0.24214561,656.4,654.14,0.325]
[1746949270034,0.24214561,656.42,654.14,0.325]
[1746949270534,0.24214561,656.39,654.14,0.325]
[1746949270935,0.24214561,656.42,654.14,0.325]
[1746949272041,0.24214561,656.41,654.14,0.325]
[1746949272438,0.50768298,656.4,654.14,0.325]
[1746949272740,0.24214561,656.39,654.14,0.325]
[1746949272939,0.24214561,656.38,654.14,0.325]
[1746949273340,0.24214561,656.37,654.14,0.325]
[1746949273742,0.24214561,656.39,654.14,0.325]
[1746949274343,0.26553737,656.4,654.14,0.325]
[1746949274640,0.24194809,656.39,654.14,0.325]
[1746949274935,0.24194809,656.38,654.14,0.325]
[1746949275440,0.26554649,656.37,654.14,0.325]
[1746949275640,0.50749458,656.37,654.14,0.325]
[1746949275834,0.24194809,656.36,654.14,0.325]
[1746949276038,0.24194809,656.36,654.12,0.30575429]
[1746949277438,0.24194809,656.35,654.13,0.28061288]
[1746949277641,0.3047619,656.25,654.13,0.28061288]
[1746949277841,0.3047619,656.25,654.12,0.30575429]
[1746949278344,0.24194809,656.24,654.12,0.30575429]
[1746949278740,0.24194809,656.23,654.12,0.30575429]
[1746949278941,0.24194809,656.22,654.12,0.30575429]
[1746949279543,0.24194809,656.24,654.12,0.30575429]
[1746949279744,0.26560932,656.21,654.12,0.30575429]
[1746949280244,0.24194809,656.2,654.12,0.30575429]
[1746949280842,0.24194809,656.2,654.13,0.28056882]
[1746949281343,0.24194809,656.2,654.12,0.30575429]
[1746949286445,0.26560932,656.21,654.12,0.30575429]
[1746949286850,0.24193209,656.2,654.12,0.30575429]
[1746949287150,0.24193209,656.2,654.13,0.28057757]
[1746949287449,0.24193209,656.24,654.13,0.28057757]
[1746949288249,0.24193209,656.24,654.12,0.30575429]
[1746949288850,0.24193209,656.24,654.13,0.28055412]
[1746949291951,0.3047619,656.25,654.12,0.57128153]
[1746949292152,0.3047619,656.25,654.14,0.30574494]
[1746949292653,0.24197278,656.24,654.14,0.30574494]
[1746949293149,0.24197278,656.24,654.15,0.2805466]
[1746949294451,0.24197278,656.23,654.15,0.2805466]
[1746949294757,0.24197278,656.22,654.15,0.2805466]
[1746949295151,0.24197278,656.21,654.15,0.2805466]
[1746949295452,0.24197278,656.2,654.15,0.2805466]
[1746949296656,0.24197278,656.19,654.15,0.2805466]
[1746949297056,0.24197278,656.18,654.15,0.2805466]
[1746949297458,0.24197278,656.24,654.15,0.2805466]
[1746949297856,0.24197278,656.24,654.14,0.30574494]
[1746949298157,0.3047619,656.25,654.14,0.30574494]
[1746949298458,0.24192152,656.24,654.14,0.30574494]
[1746949298758,0.24192152,656.24,654.15,0.28057945]
[1746949299259,0.24192152,656.24,654.17,0.30573092]
[1746949299556,0.24192152,656.24,654.18,0.28059846]
[1746949300855,0.24192152,656.23,654.18,0.28059846]
[1746949301154,0.24192152,656.24,654.18,0.28059846]
[1746949311559,0.2655323,656.23,654.18,0.28059846]
[1746949317263,0.24192152,656.24,654.18,0.28059846]
[1746949322262,0.3047619,656.25,654.17,0.57125309]
[1746949322663,0.24204112,656.24,654.18,0.2804532]
[1746949324267,0.3047619,656.25,654.17,0.57119638]
[1746949324562,0.24201172,656.24,654.18,0.28042547]
[1746949334774,0.24201172,656.24,654.19,0.28042547]
[1746949335075,0.24201172,656.24,654.2,0.28042547]
[1746949335369,0.24201172,656.24,654.17,0.30573092]
[1746949335370,0.24201172,656.24,654.21,0.28042547]
[1746949335577,0.24201172,656.24,654.22,0.28042547]
[1746949335975,0.24201172,656.24,654.23,0.28042547]
[1746949336277,0.24201172,656.24,654.24,0.28042547]
[1746949336577,0.24201172,656.24,654.25,0.28042547]
[1746949336875,0.24201172,656.24,654.26,0.28042547]
[1746949339276,0.24201172,656.24,654.19,0.28042547]
[1746949340274,0.24201172,656.24,654.2,0.28042547]
[1746949340675,0.24201172,656.24,654.19,0.28042547]
[1746949340975,0.24201172,656.24,654.2,0.28042547]
[1746949341377,0.24201172,656.24,654.21,0.28042547]
[1746949341776,0.24201172,656.24,654.22,0.28042547]
[1746949342076,0.24201172,656.24,654.23,0.28042547]
[1746949342375,0.24201172,656.24,654.24,0.28042547]
[1746949342569,0.24201172,656.24,654.25,0.28042547]
[1746949342874,0.24201172,656.24,654.26,0.28042547]
[1746949343971,0.24201172,656.24,654.19,0.28042547]
[1746949344376,0.24201172,656.24,654.2,0.28042547]
[1746949344779,0.24201172,656.24,654.21,0.28042547]
[1746949344979,0.24201172,656.24,654.19,0.28042547]
[1746949345279,0.24201172,656.24,654.2,0.28042547]
[1746949345579,0.24201172,656.24,654.21,0.28042547]
[1746949345774,0.24201172,656.24,654.22,0.28042547]
[1746949346380,0.24201172,656.24,654.19,0.28042547]
[1746949347580,0.24201172,656.24,654.18,0.28042547]
[1746949349781,0.24201172,656.24,654.18,0.54588688]
[1746949350081,0.24201172,656.24,654.19,0.28042547]
[1746949356082,0.3047619,656.25,654.18,0.26547052]
[1746949356279,0.3047619,656.25,654.17,0.30573092]
[1746949356485,0.24201563,656.24,654.19,0.28042774]
[1746949356683,0.24201563,656.24,654.18,0.54592155]
[1746949357086,0.24201563,656.24,654.19,0.28042774]
[1746949357991,0.24201563,656.24,654.2,0.438]
[1746949358496,0.24201563,656.24,654.21,0.28042774]
[1746949359295,0.3047619,656.25,654.2,0.438]
[1746949359494,0.24201669,656.24,654.21,0.28046545]
[1746949364694,0.3047619,656.25,654.2,0.70351711]
[1746949365197,0.24197948,656.24,654.21,0.28051591]
[1746949365398,0.50748444,656.24,654.21,0.28051591]
[1746949365794,0.24197948,656.23,654.21,0.28051591]
[1746949366997,0.26550496,656.24,654.2,0.70350496]
[1746949367302,0.24198784,656.23,654.21,0.28051336]
[1746949369004,0.26550496,656.24,654.2,0.70350496]
[1746949369306,0.24196513,656.23,654.2,0.70350496]
[1746949373500,0.26550496,656.24,654.2,0.70350496]
[1746949373805,0.24204655,656.23,654.2,0.70350496]
[1746949374206,0.24204655,656.23,654.21,0.28056921]
[1746949374802,0.24204655,656.22,654.21,0.28056921]
[1746949375205,0.24204655,656.21,654.21,0.28056921]
[1746949375505,0.24204655,656.2,654.21,0.28056921]
[1746949375807,0.24204655,656.19,654.21,0.28056921]
[1746949376208,0.24204655,656.18,654.21,0.28056921]
[1746949376508,0.24204655,656.17,654.21,0.28056921]
[1746949376810,0.24204655,656.16,654.21,0.28056921]
[1746949377410,0.24204655,656.41,654.21,0.28056921]
[1746949377910,1.92318063,656.42,654.21,0.28056921]
[1746949377911,0.24204655,656.4,654.21,0.28056921]
[1746949378112,2.16522718,656.4,654.21,0.28056921]
[1746949378303,0.24204655,656.39,654.21,0.28056921]
[1746949378710,0.24204655,656.38,654.21,0.28056921]
[1746949379010,0.24204655,656.37,654.21,0.28056921]
[1746949379412,0.24204655,656.36,654.21,0.28056921]
[1746949379714,0.24204655,656.35,654.21,0.28056921]
[1746949379913,0.24204655,656.34,654.21,0.28056921]
[1746949380213,0.24204655,656.33,654.21,0.28056921]
[1746949380614,0.24204655,656.32,654.21,0.28056921]
[1746949380913,0.24204655,656.31,653.25,0.28056921]
[1746949381215,0.24204655,656.3,653.26,0.28056921]
[1746949381514,0.24204655,656.29,653.27,0.28056921]
[1746949381712,0.24204655,656.29,653.27,0.71856921]
[1746949381912,0.24204655,656.52,653.28,0.28056921]
[1746949382116,0.24204655,656.28,653.28,0.28056921]
[1746949382316,0.24204655,656.53,653.29,0.28056921]
[1746949382715,0.24204655,656.53,653.3,0.28056921]
[1746949382916,0.24204655,656.53,653.3,0.54616332]
[1746949383116,0.24204655,656.53,653.31,0.28056921]
[1746949383318,0.3046412,656.51,653.47,0.30605842]
[1746949383717,0.24204655,656.5,653.48,0.28056921]
[1746949384213,0.24204655,656.5,653.49,0.28056921]
[1746949384818,0.24204655,656.49,653.49,0.28056921]
[1746949385117,0.24204655,656.48,653.5,0.28056921]
[1746949385318,0.24204655,656.47,653.51,0.28056921]
[1746949385516,0.24204655,656.47,653.52,0.28056921]
[1746949385719,0.24204655,656.46,653.52,0.28056921]
[1746949386019,0.24204655,656.45,653.56,0.95271709]
[1746949386217,0.24204655,656.44,653.57,0.28056921]
[1746949386513,0.24204655,656.43,653.58,0.28056921]
[1746949386718,0.24204655,656.42,653.59,0.28056921]
[1746949386919,0.24204655,656.41,653.6,0.28056921]
[1746949387118,0.24204655,656.4,653.61,0.28056921]
[1746949387321,0.24204655,656.39,653.62,0.28056921]
[1746949387515,0.24204655,656.38,653.63,0.28056921]
[1746949387720,0.24204655,656.37,653.64,0.28056921]
[1746949388019,0.24204655,656.36,653.65,0.28056921]
[1746949388420,0.3046412,656.51,653.49,0.95271709]
[1746949388721,0.24211229,656.5,653.5,0.28051498]
[1746949389020,0.24211229,656.5,653.51,0.28051498]
[1746949389220,0.24211229,656.5,653.52,0.28051498]
[1746949389516,0.24211229,656.5,653.53,0.28051498]
[1746949389720,0.24211229,656.5,653.54,0.28051498]
[1746949389922,0.24211229,656.5,653.55,0.28051498]
[1746949390121,0.3046412,656.51,653.47,0.30605842]
[1746949390320,0.24211476,656.5,653.48,0.28050765]
[1746949390521,0.24211476,656.5,653.49,0.28050765]
[1746949390723,0.24211476,656.5,653.5,0.28050765]
[1746949390916,0.24211476,656.5,653.51,0.28050765]
[1746949391117,0.24211476,656.5,653.52,0.28050765]
[1746949391317,0.24211476,656.5,653.53,0.28050765]
[1746949391516,0.24211476,656.5,653.54,0.28050765]
[1746949391718,0.24211476,656.5,653.55,0.28050765]
[1746949391917,0.24211476,656.5,653.56,0.28050765]
[1746949392123,0.24211476,656.5,653.57,0.28050765]
[1746949392316,0.24211476,656.5,653.58,0.28050765]
[1746949392519,0.24211476,656.5,653.59,0.28050765]
[1746949392718,0.24211476,656.5,653.6,0.28050765]
[1746949392922,0.24211476,656.5,653.61,0.28050765]
[1746949393121,0.24211476,656.5,653.62,0.28050765]
[1746949393322,0.24211476,656.5,653.63,0.28050765]
[1746949393522,0.24211476,656.5,653.64,0.28050765]
[1746949393824,0.24211476,656.5,653.65,0.28050765]
[1746949394025,0.24211476,656.5,653.66,0.28050765]
[1746949394319,0.24211476,656.5,653.67,0.28050765]
[1746949394519,0.24211476,656.5,653.48,0.28050765]
[1746949394719,0.24211476,656.5,653.49,0.28050765]
[1746949395019,0.24211476,656.5,653.5,0.28050765]
[1746949395219,0.24211476,656.5,653.51,0.28050765]
[1746949395418,0.24211476,656.5,653.52,0.28050765]
[1746949395622,0.24211476,656.5,653.53,0.28050765]
[1746949395920,0.24211476,656.5,653.54,0.28050765]
[1746949396318,0.24211476,656.5,653.55,0.28050765]
[1746949396821,0.24211476,656.5,653.56,0.28050765]
[1746949397025,0.24211476,656.5,653.57,0.28050765]
[1746949397224,0.24211476,656.5,653.58,0.28050765]
[1746949397425,0.24211476,656.5,653.59,0.28050765]
[1746949397624,0.24211476,656.5,653.6,0.28050765]
[1746949397826,0.24211476,656.5,653.61,0.28050765]
[1746949398026,0.24211476,656.5,653.62,0.28050765]
[1746949398224,0.24211476,656.5,653.63,0.28050765]
[1746949398424,0.24211476,656.5,653.64,0.28050765]
[1746949398627,0.24211476,656.5,653.65,0.28050765]
[1746949398830,0.3046412,656.51,653.47,0.57158667]
[1746949399025,0.2421825,656.49,653.66,0.28043291]
[1746949399529,0.2421825,656.5,653.67,0.28043291]
[1746949399930,0.2421825,656.5,653.68,0.28043291]
[1746949400133,0.3046412,656.51,653.47,0.57158667]
[1746949400431,0.24218312,656.5,653.62,0.95271709]
[1746949400830,0.24218312,656.5,653.63,0.28043119]
[1746949401029,0.24218312,656.5,653.64,0.28043119]
[1746949401226,0.24218312,656.5,653.65,0.28043119]
[1746949401530,0.24218312,656.5,653.66,0.28043119]
[1746949402230,0.24218312,656.5,653.68,0.95271709]
[1746949402625,0.24218312,656.5,653.69,0.28043119]
[1746949403130,0.24218312,656.5,653.7,0.28043119]
[1746949403329,0.24218312,656.5,653.71,0.28043119]
[1746949403725,0.24218312,656.5,653.72,0.28043119]
[1746949404029,0.24218312,656.5,653.73,0.28043119]
[1746949404526,0.24218312,656.5,653.74,0.28043119]
[1746949405029,0.24218312,656.5,653.75,0.28043119]
[1746949405330,0.24218312,656.5,653.76,0.28043119]
[1746949405633,0.24218312,656.5,653.77,0.28043119]
[1746949405930,0.24218312,656.5,653.78,0.28043119]
[1746949406227,0.24218312,656.5,653.79,0.28043119]
[1746949406731,0.24218312,656.5,653.8,0.28043119]
[1746949407031,0.24218312,656.5,653.81,0.28043119]
[1746949407335,0.24218312,656.5,653.82,0.28043119]
[1746949407836,0.24218312,656.5,653.83,0.28043119]
[1746949408035,0.3046412,656.51,653.67,0.26548267]
[1746949408334,0.24223064,656.5,653.68,0.28036853]
[1746949409430,0.24223064,656.5,653.69,0.28036853]
[1746949409633,0.24223064,656.5,653.7,0.28036853]
[1746949409930,0.24223064,656.5,653.71,0.28036853]
[1746949410233,0.24223064,656.5,653.72,0.28036853]
[1746949410729,0.24223064,656.5,653.73,0.28036853]
[1746949411034,0.24223064,656.5,653.74,0.28036853]
[1746949411434,0.24223064,656.5,653.75,0.28036853]
[1746949411734,0.24223064,656.5,653.76,0.28036853]
[1746949412035,0.24223064,656.5,653.77,0.28036853]
[1746949412434,0.24223064,656.5,653.78,0.28036853]
[1746949412639,0.24223064,656.5,653.79,0.28036853]
[1746949413035,0.24223064,656.5,653.8,0.28036853]
[1746949413335,0.24223064,656.5,653.81,0.28036853]
[1746949413735,0.24223064,656.5,653.82,0.28036853]
[1746949413937,0.24223064,656.5,653.83,0.28036853]
[1746949414439,0.24223064,656.5,653.84,0.28036853]
[1746949414733,0.24223064,656.5,653.85,0.28036853]
[1746949415036,0.24223064,656.5,653.86,0.28036853]
[1746949415338,0.24223064,656.5,653.87,0.28036853]
[1746949415738,0.24223064,656.5,653.88,0.28036853]
[1746949415938,0.24223064,656.5,653.89,0.28036853]
[1746949416532,0.24223064,656.5,653.9,0.28036853]
[1746949416838,0.24223064,656.5,653.91,0.28036853]
[1746949417339,0.24223064,656.5,653.92,0.28036853]
[1746949418034,0.24223064,656.5,653.93,0.28036853]
[1746949418344,0.24223064,656.5,653.94,0.28036853]
[1746949418642,0.24223064,656.5,653.95,0.28036853]
[1746949419039,0.24223064,656.5,653.96,0.28036853]
[1746949419535,0.24223064,656.5,653.97,0.28036853]
[1746949419735,0.3046412,656.51,653.86,0.26548166]
[1746949420040,0.24220658,656.5,653.87,0.28038109]
[1746949420341,0.24220658,656.5,653.88,0.28038109]
[1746949420642,0.24220658,656.5,654.01,0.30580572]
[1746949421040,0.24220658,656.5,654.02,0.28038109]
[1746949421338,0.24220658,656.5,654.03,0.28038109]
[1746949421941,0.24220658,656.49,654.04,0.28038109]
[1746949422242,0.24220658,656.48,654.05,0.28038109]
[1746949422438,0.24220658,656.47,654.06,0.28038109]
[1746949422944,0.24220658,656.46,654.07,0.28038109]
[1746949423543,0.24220658,656.45,654.08,0.28038109]
[1746949424544,0.24220658,656.44,654.09,0.28038109]
[1746949424841,0.24220658,656.43,654.1,0.28038109]
[1746949425142,0.26550799,656.48,654.01,0.30580572]
[1746949425345,0.3046412,656.51,654.01,0.30580572]
[1746949425647,0.50764447,656.47,654.02,0.28049962]
[1746949425942,0.24211217,656.46,654.03,0.28049962]
[1746949426247,1.92318063,656.4,654.15,0.30574027]
[1746949427052,0.24211217,656.39,654.15,0.30574027]
[1746949428653,0.26553534,656.38,654.15,0.30574027]
[1746949428854,0.24211217,656.37,654.15,0.30574027]
[1746949432658,0.24211217,656.37,654.16,0.28049904]
[1746949433457,0.24211217,656.36,654.16,0.28049904]
[1746949433760,0.24211217,656.35,654.16,0.28049904]
[1746949434056,0.24211217,656.34,654.16,0.28049904]
[1746949434256,0.24211217,656.33,654.16,0.28049904]
[1746949434755,0.24211217,656.5,654.15,0.30574027]
[1746949435457,0.24211217,656.5,654.15,0.72374027]
[1746949437057,0.24211217,656.49,654.16,0.28056273]
[1746949437356,0.24211217,656.48,654.16,0.28056273]
[1746949437652,0.24211217,656.47,654.16,0.28056273]
[1746949437856,0.24211217,656.47,654.26,0.30568886]
[1746949438358,0.24211217,656.46,654.26,0.30568886]
[1746949438552,1.92318063,656.45,654.26,0.30568886]
[1746949438751,2.1652928,656.45,654.27,0.28056273]
[1746949439055,0.24211217,656.44,654.27,0.28056273]
[1746949439254,0.24211217,656.43,654.27,0.28056273]
[1746949439555,0.24211217,656.42,654.27,0.28056273]
[1746949439958,0.24211217,656.41,654.27,0.28056273]
[1746949440253,0.24211217,656.4,654.27,0.28056273]
[1746949440559,0.24211217,656.44,654.26,0.30568886]
[1746949441259,0.24211217,656.48,654.26,0.30568886]
[1746949443262,0.30466441,656.46,654.26,0.30568886]
[1746949447961,0.24211217,656.45,654.26,0.30568886]
[1746949450962,0.24211217,656.44,654.26,0.30568886]
[1746949451166,0.24211217,656.43,654.27,0.28059023]
[1746949451762,0.26554446,656.42,654.27,0.28059023]
[1746949452268,0.24211217,656.43,654.27,0.28059023]
[1746949452469,0.24211217,656.42,654.27,0.28059023]
[1746949452667,0.50765663,656.41,654.26,0.30568886]